[Event "January 2 Early 2024"]
[Site "https://www.chess.com"]
[Date "2024.01.02"]
[Round "5"]
[White "Matyunin, Maxim"]
[Black "Bologan, Victor"]
[Result "0-1"]
[Board "44"]
[TimeControl "180+1"]
[WhiteFideId "34106682"]
[BlackFideId "13900048"]
[WhiteElo "2546"]
[BlackElo "2807"]
[WhiteTeam "RUS"]
[BlackTeam "MDA"]
[WhiteClock "0:00:04"]
[BlackClock "0:00:51"]

1. d4 {[%clk 0:03:00]}  Nf6 {[%clk 0:02:58]} 2. Nf3 {[%clk 0:03:00]}  c5 {[%clk 0:02:58]} 3. d5 {[%clk 0:03:00]}  b5 {[%clk 0:02:58]} 4. c4 {[%clk 0:02:58]}  b4 {[%clk 0:02:55]} 5. Qc2 {[%clk 0:02:57]}  g6 {[%clk 0:02:52]} 6. Bg5 {[%clk 0:02:57]}  Bg7 {[%clk 0:02:51]} 7. Nbd2 {[%clk 0:02:57]}  O-O {[%clk 0:02:51]} 8. e4 {[%clk 0:02:55]}  d6 {[%clk 0:02:50]} 9. Be2 {[%clk 0:02:53]}  a5 {[%clk 0:02:50]} 10. O-O {[%clk 0:02:52]}  a4 {[%clk 0:02:50]} 11. h3 {[%clk 0:02:51]}  e6 {[%clk 0:02:46]} 12. Rae1 {[%clk 0:02:48]}  h6 {[%clk 0:02:46]} 13. Bh4 {[%clk 0:02:47]}  g5 {[%clk 0:02:45]} 14. Bg3 {[%clk 0:02:47]}  Nh5 {[%clk 0:02:45]} 15. Bh2 {[%clk 0:02:44]}  Nf4 {[%clk 0:02:41]} 16. Bxf4 {[%clk 0:02:37]}  gxf4 {[%clk 0:02:41]} 17. g3 {[%clk 0:02:35]}  fxg3 {[%clk 0:02:38]} 18. fxg3 {[%clk 0:02:34]}  exd5 {[%clk 0:02:38]} 19. exd5 {[%clk 0:02:30]}  Bxh3 {[%clk 0:02:37]} 20. Rf2 {[%clk 0:02:28]}  Nd7 {[%clk 0:02:34]} 21. Kh2 {[%clk 0:02:27]}  Bg4 {[%clk 0:02:29]} 22. Nh4 {[%clk 0:02:26]}  Ne5 {[%clk 0:02:19]} 23. Rf4 {[%clk 0:02:18]}  b3 {[%clk 0:02:18]} 24. axb3 {[%clk 0:02:13]}  axb3 {[%clk 0:02:17]} 25. Qe4 {[%clk 0:02:05]}  Bd7 {[%clk 0:01:57]} 26. Nf5 {[%clk 0:01:50]}  Bxf5 {[%clk 0:01:55]} 27. Rxf5 {[%clk 0:01:36]}  Ra2 {[%clk 0:01:53]} 28. Rb1 {[%clk 0:01:14]}  Re8 {[%clk 0:01:48]} 29. Bd1 {[%clk 0:01:03]}  Ng6 {[%clk 0:01:40]} 30. Qf3 {[%clk 0:00:58]}  Ra7 {[%clk 0:01:34]} 31. Bxb3 {[%clk 0:00:55]}  Rae7 {[%clk 0:01:33]} 32. Rf1 {[%clk 0:00:45]}  Re3 {[%clk 0:01:25]} 33. Qh5 {[%clk 0:00:38]}  Re2+ {[%clk 0:01:14]} 34. R1f2 {[%clk 0:00:35]}  Rxf2+ {[%clk 0:01:13]} 35. Rxf2 {[%clk 0:00:36]}  Re3 {[%clk 0:01:11]} 36. Bc2 {[%clk 0:00:34]}  Ne5 {[%clk 0:01:06]} 37. Qf5 {[%clk 0:00:30]}  Qg5 {[%clk 0:01:03]} 38. Qh7+ {[%clk 0:00:04]}  Kf8 {[%clk 0:01:02]} 39. Rg2 {[%clk 0:00:04]}  Qh5+ {[%clk 0:00:55]} 40. Kg1 {[%clk 0:00:04]}  Re1+ {[%clk 0:00:53]} 41. Nf1 {[%clk 0:00:04]}  Nf3+ {[%clk 0:00:52]} 42. Kf2 {[%clk 0:00:04]}  Bd4+ {[%clk 0:00:51]} 43. Ne3 {[%clk 0:00:04]}  Bxe3# {[%clk 0:00:51]} 0-1

[Event "January 2 Early 2024"]
[Site "https://www.chess.com"]
[Date "2024.01.02"]
[Round "5"]
[White "De Winter, Arthur"]
[Black "Petukhov, Dmitry"]
[Result "1-0"]
[Board "46"]
[TimeControl "180+1"]
[WhiteFideId "1069020"]
[BlackFideId "4142748"]
[WhiteElo "2805"]
[BlackElo "2533"]
[WhiteTeam "NED"]
[BlackTeam "RUS"]
[WhiteClock "0:01:23"]
[BlackClock "0:00:18"]

1. e4 {[%clk 0:03:00]}  c5 {[%clk 0:02:58]} 2. Nf3 {[%clk 0:03:00]}  d6 {[%clk 0:02:58]} 3. d4 {[%clk 0:03:00]}  cxd4 {[%clk 0:02:59]} 4. Nxd4 {[%clk 0:03:01]}  Nf6 {[%clk 0:02:58]} 5. Nc3 {[%clk 0:03:01]}  Nc6 {[%clk 0:02:58]} 6. f3 {[%clk 0:02:57]}  e5 {[%clk 0:02:58]} 7. Nb3 {[%clk 0:02:57]}  Be6 {[%clk 0:02:56]} 8. Nd5 {[%clk 0:02:57]}  Be7 {[%clk 0:02:55]} 9. c3 {[%clk 0:02:57]}  O-O {[%clk 0:02:55]} 10. Be3 {[%clk 0:02:57]}  Re8 {[%clk 0:02:51]} 11. Be2 {[%clk 0:02:55]}  h6 {[%clk 0:02:44]} 12. O-O {[%clk 0:02:55]}  Bf8 {[%clk 0:02:43]} 13. Bf2 {[%clk 0:02:45]}  Bxd5 {[%clk 0:02:40]} 14. exd5 {[%clk 0:02:46]}  Ne7 {[%clk 0:02:40]} 15. Bb5 {[%clk 0:02:46]}  Nexd5 {[%clk 0:02:36]} 16. Bxe8 {[%clk 0:02:46]}  Qxe8 {[%clk 0:02:37]} 17. c4 {[%clk 0:02:44]}  Nf4 {[%clk 0:02:34]} 18. Be3 {[%clk 0:02:40]}  N6h5 {[%clk 0:02:24]} 19. g3 {[%clk 0:02:27]}  Ne6 {[%clk 0:02:20]} 20. Qd5 {[%clk 0:02:25]}  b6 {[%clk 0:02:05]} 21. a4 {[%clk 0:02:20]}  Nf6 {[%clk 0:02:03]} 22. Qd3 {[%clk 0:02:13]}  h5 {[%clk 0:01:43]} 23. a5 {[%clk 0:02:13]}  Rb8 {[%clk 0:01:31]} 24. axb6 {[%clk 0:02:13]}  axb6 {[%clk 0:01:32]} 25. Nd2 {[%clk 0:02:07]}  h4 {[%clk 0:01:29]} 26. Ne4 {[%clk 0:02:05]}  Nxe4 {[%clk 0:01:24]} 27. Qxe4 {[%clk 0:02:06]}  hxg3 {[%clk 0:01:23]} 28. hxg3 {[%clk 0:02:07]}  b5 {[%clk 0:01:20]} 29. cxb5 {[%clk 0:02:02]}  Rxb5 {[%clk 0:01:21]} 30. Ra8 {[%clk 0:02:02]}  Rb8 {[%clk 0:01:20]} 31. Rxb8 {[%clk 0:01:58]}  Qxb8 {[%clk 0:01:20]} 32. Rf2 {[%clk 0:01:59]}  Qb3 {[%clk 0:01:18]} 33. Rd2 {[%clk 0:01:52]}  g6 {[%clk 0:01:04]} 34. Kf2 {[%clk 0:01:49]}  Nc7 {[%clk 0:00:45]} 35. Qc2 {[%clk 0:01:29]}  Qb7 {[%clk 0:00:42]} 36. b4 {[%clk 0:01:29]}  d5 {[%clk 0:00:42]} 37. Bc5 {[%clk 0:01:27]}  e4 {[%clk 0:00:38]} 38. Bxf8 {[%clk 0:01:25]}  Kxf8 {[%clk 0:00:36]} 39. Qc5+ {[%clk 0:01:25]}  Kg8 {[%clk 0:00:35]} 40. fxe4 {[%clk 0:01:25]}  dxe4 {[%clk 0:00:32]} 41. Rd8+ {[%clk 0:01:24]}  Kh7 {[%clk 0:00:30]} 42. Qd4 {[%clk 0:01:24]}  Kh6 {[%clk 0:00:17]} 43. Rh8+ {[%clk 0:01:21]}  Kg5 {[%clk 0:00:17]} 44. Qe5+ {[%clk 0:01:22]}  f5 {[%clk 0:00:18]} 45. Qe7+ {[%clk 0:01:22]}  Kg4 {[%clk 0:00:18]} 46. Qh4# {[%clk 0:01:23]} 1-0

[Event "January 2 Early 2024"]
[Site "https://www.chess.com"]
[Date "2024.01.02"]
[Round "5"]
[White "Coca Cubillos, Jesus Alberto"]
[Black "ilqar_74"]
[Result "1-0"]
[Board "48"]
[TimeControl "180+1"]
[WhiteFideId "4462912"]
[WhiteElo "2508"]
[BlackElo "2798"]
[WhiteTeam "COL"]
[WhiteClock "0:00:06"]
[BlackClock "0:00:01"]

1. f4 {[%clk 0:02:55]}  g6 {[%clk 0:02:57]} 2. Nf3 {[%clk 0:02:54]}  Bg7 {[%clk 0:02:57]} 3. e3 {[%clk 0:02:54]}  Nf6 {[%clk 0:02:58]} 4. d4 {[%clk 0:02:55]}  O-O {[%clk 0:02:58]} 5. Bd3 {[%clk 0:02:55]}  c5 {[%clk 0:02:59]} 6. O-O {[%clk 0:02:55]}  cxd4 {[%clk 0:02:59]} 7. exd4 {[%clk 0:02:55]}  d5 {[%clk 0:03:00]} 8. c3 {[%clk 0:02:55]}  Nc6 {[%clk 0:03:00]} 9. Nbd2 {[%clk 0:02:56]}  Bf5 {[%clk 0:03:00]} 10. Qc2 {[%clk 0:02:55]}  Qc8 {[%clk 0:02:58]} 11. Qb1 {[%clk 0:02:51]}  a6 {[%clk 0:02:56]} 12. Ne5 {[%clk 0:02:51]}  Re8 {[%clk 0:02:54]} 13. Ndf3 {[%clk 0:02:49]}  Ne4 {[%clk 0:02:53]} 14. Be3 {[%clk 0:02:48]}  f6 {[%clk 0:02:52]} 15. Nxc6 {[%clk 0:02:47]}  bxc6 {[%clk 0:02:53]} 16. Nd2 {[%clk 0:02:48]}  Nd6 {[%clk 0:02:50]} 17. h3 {[%clk 0:02:46]}  Rb8 {[%clk 0:02:49]} 18. g4 {[%clk 0:02:43]}  Bxd3 {[%clk 0:02:49]} 19. Qxd3 {[%clk 0:02:43]}  Rxb2 {[%clk 0:02:49]} 20. Nb3 {[%clk 0:02:37]}  Qe6 {[%clk 0:01:56]} 21. Nc5 {[%clk 0:02:22]}  Qf7 {[%clk 0:01:56]} 22. f5 {[%clk 0:02:11]}  gxf5 {[%clk 0:01:49]} 23. Bc1 {[%clk 0:02:07]}  Rbb8 {[%clk 0:01:43]} 24. gxf5 {[%clk 0:02:07]}  Kh8 {[%clk 0:01:42]} 25. Bf4 {[%clk 0:02:03]}  Rg8 {[%clk 0:01:41]} 26. Kh2 {[%clk 0:01:59]}  Rb2+ {[%clk 0:01:39]} 27. Kh1 {[%clk 0:02:00]}  Qh5 {[%clk 0:01:35]} 28. Bxd6 {[%clk 0:01:53]}  exd6 {[%clk 0:01:35]} 29. Ne6 {[%clk 0:01:49]}  Bh6 {[%clk 0:01:20]} 30. Rg1 {[%clk 0:01:47]}  Bg5 {[%clk 0:01:19]} 31. Rg3 {[%clk 0:01:26]}  Rd2 {[%clk 0:01:09]} 32. Qxa6 {[%clk 0:01:15]}  Qh4 {[%clk 0:00:53]} 33. Rag1 {[%clk 0:01:10]}  Qe4+ {[%clk 0:00:52]} 34. R1g2 {[%clk 0:01:07]}  Rxg2 {[%clk 0:00:42]} 35. Rxg2 {[%clk 0:01:05]}  Qxf5 {[%clk 0:00:28]} 36. Nxg5 {[%clk 0:00:58]}  fxg5 {[%clk 0:00:29]} 37. Kh2 {[%clk 0:00:38]}  Qf4+ {[%clk 0:00:29]} 38. Kg1 {[%clk 0:00:38]}  Re8 {[%clk 0:00:25]} 39. Qf1 {[%clk 0:00:34]}  Qe3+ {[%clk 0:00:18]} 40. Kh2 {[%clk 0:00:34]}  Qe7 {[%clk 0:00:12]} 41. Qf5 {[%clk 0:00:30]}  h6 {[%clk 0:00:10]} 42. Qg6 {[%clk 0:00:30]}  Qg7 {[%clk 0:00:09]} 43. Qxd6 {[%clk 0:00:29]}  Rf8 {[%clk 0:00:10]} 44. h4 {[%clk 0:00:27]}  g4 {[%clk 0:00:08]} 45. Rxg4 {[%clk 0:00:25]}  Qxg4 {[%clk 0:00:07]} 46. Qxf8+ {[%clk 0:00:25]}  Kh7 {[%clk 0:00:07]} 47. Qf7+ {[%clk 0:00:25]}  Kh8 {[%clk 0:00:08]} 48. Qf2 {[%clk 0:00:21]}  Qe4 {[%clk 0:00:07]} 49. Kg3 {[%clk 0:00:20]}  Qb1 {[%clk 0:00:07]} 50. Qf6+ {[%clk 0:00:19]}  Kh7 {[%clk 0:00:07]} 51. Qe7+ {[%clk 0:00:19]}  Kh8 {[%clk 0:00:07]} 52. Qe8+ {[%clk 0:00:19]}  Kh7 {[%clk 0:00:07]} 53. Qd7+ {[%clk 0:00:19]}  Kh8 {[%clk 0:00:07]} 54. Qxc6 {[%clk 0:00:20]}  Qxa2 {[%clk 0:00:06]} 55. Qxh6+ {[%clk 0:00:18]}  Kg8 {[%clk 0:00:07]} 56. Qe3 {[%clk 0:00:18]}  Qb1 {[%clk 0:00:04]} 57. Kg4 {[%clk 0:00:18]}  Qd1+ {[%clk 0:00:04]} 58. Kf5 {[%clk 0:00:16]}  Qf1+ {[%clk 0:00:02]} 59. Ke5 {[%clk 0:00:10]}  Qb5 {[%clk 0:00:03]} 60. Qg5+ {[%clk 0:00:10]}  Kf8 {[%clk 0:00:03]} 61. Qf6+ {[%clk 0:00:10]}  Kg8 {[%clk 0:00:03]} 62. Qe6+ {[%clk 0:00:11]}  Kg7 {[%clk 0:00:04]} 63. Qxd5 {[%clk 0:00:09]}  Qb8+ {[%clk 0:00:05]} 64. Qd6 {[%clk 0:00:10]}  Qe8+ {[%clk 0:00:05]} 65. Qe6 {[%clk 0:00:10]}  Qb5+ {[%clk 0:00:05]} 66. Ke4 {[%clk 0:00:10]}  Qe2+ {[%clk 0:00:05]} 67. Kd5 {[%clk 0:00:11]}  Qa2+ {[%clk 0:00:06]} 68. Kd6 {[%clk 0:00:11]}  Qa6+ {[%clk 0:00:06]} 69. Ke5 {[%clk 0:00:12]}  Qe2+ {[%clk 0:00:06]} 70. Kd6 {[%clk 0:00:08]}  Qa6+ {[%clk 0:00:06]} 71. Ke7 {[%clk 0:00:08]}  Qb7+ {[%clk 0:00:05]} 72. Qd7 {[%clk 0:00:08]}  Qe4+ {[%clk 0:00:05]} 73. Kd6+ {[%clk 0:00:09]}  Kf6 {[%clk 0:00:06]} 74. Qd8+ {[%clk 0:00:08]}  Kf7 {[%clk 0:00:06]} 75. Qg5 {[%clk 0:00:07]}  Qd3 {[%clk 0:00:06]} 76. Qh5+ {[%clk 0:00:05]}  Kg7 {[%clk 0:00:06]} 77. Qe5+ {[%clk 0:00:06]}  Kf7 {[%clk 0:00:06]} 78. Qe6+ {[%clk 0:00:04]}  Kg7 {[%clk 0:00:06]} 79. Qe7+ {[%clk 0:00:04]}  Kg6 {[%clk 0:00:04]} 80. Qg5+ {[%clk 0:00:04]}  Kf7 {[%clk 0:00:05]} 81. Qd5+ {[%clk 0:00:04]}  Kg7 {[%clk 0:00:05]} 82. c4 {[%clk 0:00:05]}  Qa3+ {[%clk 0:00:05]} 83. c5 {[%clk 0:00:05]}  Qa6+ {[%clk 0:00:05]} 84. c6 {[%clk 0:00:05]}  Qa3+ {[%clk 0:00:05]} 85. Kd7 {[%clk 0:00:05]}  Qa4 {[%clk 0:00:05]} 86. Qe5+ {[%clk 0:00:04]}  Kf7 {[%clk 0:00:05]} 87. d5 {[%clk 0:00:05]}  Qb5 {[%clk 0:00:05]} 88. Qe7+ {[%clk 0:00:04]}  Kg6 {[%clk 0:00:05]} 89. d6 {[%clk 0:00:04]}  Qa4 {[%clk 0:00:06]} 90. Qg5+ {[%clk 0:00:04]}  Kh7 {[%clk 0:00:06]} 91. Qc5 {[%clk 0:00:04]}  Kg6 {[%clk 0:00:06]} 92. Kc7 {[%clk 0:00:04]}  Qf4 {[%clk 0:00:04]} 93. Kb7 {[%clk 0:00:04]}  Qf7+ {[%clk 0:00:03]} 94. c7 {[%clk 0:00:04]}  Qf3+ {[%clk 0:00:02]} 95. Kb8 {[%clk 0:00:04]}  Qb3+ {[%clk 0:00:02]} 96. Ka8 {[%clk 0:00:04]}  Qa2+ {[%clk 0:00:02]} 97. Qa7 {[%clk 0:00:05]}  Qd5+ {[%clk 0:00:02]} 98. Kb8 {[%clk 0:00:06]}  Qb5+ {[%clk 0:00:01]} 99. Qb7 {[%clk 0:00:06]} 1-0

[Event "January 2 Early 2024"]
[Site "https://www.chess.com"]
[Date "2024.01.02"]
[Round "5"]
[White "Anuj Shrivatri"]
[Black "Zimmermann, Ulrich"]
[Result "1-0"]
[Board "49"]
[TimeControl "180+1"]
[WhiteFideId "35070924"]
[BlackFideId "24654523"]
[WhiteElo "2789"]
[BlackElo "2455"]
[WhiteTeam "IND"]
[BlackTeam "GER"]
[WhiteClock "0:00:05"]
[BlackClock "0:00:16"]

1. e4 {[%clk 0:02:56]}  Nf6 {[%clk 0:03:00]} 2. e5 {[%clk 0:02:46]}  Ne4 {[%clk 0:03:01]} 3. d3 {[%clk 0:02:38]}  Nc5 {[%clk 0:03:00]} 4. d4 {[%clk 0:02:36]}  Ne6 {[%clk 0:02:59]} 5. Nf3 {[%clk 0:02:30]}  d5 {[%clk 0:02:59]} 6. Nc3 {[%clk 0:02:22]}  c5 {[%clk 0:02:55]} 7. dxc5 {[%clk 0:02:22]}  d4 {[%clk 0:02:54]} 8. Ne4 {[%clk 0:02:21]}  Qd5 {[%clk 0:02:48]} 9. Bd3 {[%clk 0:02:19]}  Nxc5 {[%clk 0:02:37]} 10. c4 {[%clk 0:02:11]}  Nxd3+ {[%clk 0:02:17]} 11. Qxd3 {[%clk 0:02:12]}  Qa5+ {[%clk 0:02:09]} 12. Bd2 {[%clk 0:02:11]}  Qc7 {[%clk 0:02:10]} 13. Qxd4 {[%clk 0:02:04]}  Nc6 {[%clk 0:02:10]} 14. Qc3 {[%clk 0:02:03]}  Bf5 {[%clk 0:02:08]} 15. Ng3 {[%clk 0:01:48]}  Bg4 {[%clk 0:02:07]} 16. O-O {[%clk 0:01:41]}  Bxf3 {[%clk 0:02:06]} 17. Qxf3 {[%clk 0:01:41]}  Qxe5 {[%clk 0:01:59]} 18. Bc3 {[%clk 0:01:38]}  Qc5 {[%clk 0:01:53]} 19. b3 {[%clk 0:01:33]}  f6 {[%clk 0:01:47]} 20. Ne4 {[%clk 0:01:29]}  Qb6 {[%clk 0:01:40]} 21. Rfe1 {[%clk 0:01:27]}  O-O-O {[%clk 0:01:37]} 22. c5 {[%clk 0:01:17]}  Qc7 {[%clk 0:01:36]} 23. b4 {[%clk 0:01:16]}  e5 {[%clk 0:01:34]} 24. b5 {[%clk 0:01:03]}  Nd4 {[%clk 0:01:35]} 25. Bxd4 {[%clk 0:01:02]}  Rxd4 {[%clk 0:01:36]} 26. b6 {[%clk 0:00:56]}  axb6 {[%clk 0:01:29]} 27. cxb6 {[%clk 0:00:57]}  Qxb6 {[%clk 0:01:28]} 28. Rab1 {[%clk 0:00:47]}  Qa6 {[%clk 0:01:19]} 29. Qc3+ {[%clk 0:00:24]}  Kb8 {[%clk 0:01:19]} 30. Rec1 {[%clk 0:00:25]}  Ba3 {[%clk 0:01:18]} 31. Qc7+ {[%clk 0:00:22]}  Ka8 {[%clk 0:01:16]} 32. Qxg7 {[%clk 0:00:11]}  Rhd8 {[%clk 0:01:11]} 33. Re1 {[%clk 0:00:10]}  f5 {[%clk 0:01:11]} 34. Ng3 {[%clk 0:00:09]}  f4 {[%clk 0:01:06]} 35. Nf5 {[%clk 0:00:08]}  R4d5 {[%clk 0:00:58]} 36. Qxh7 {[%clk 0:00:06]}  Qa7 {[%clk 0:00:54]} 37. Nh4 {[%clk 0:00:05]}  Bc5 {[%clk 0:00:51]} 38. Rf1 {[%clk 0:00:05]}  Rd2 {[%clk 0:00:50]} 39. Kh1 {[%clk 0:00:05]}  Bxf2 {[%clk 0:00:48]} 40. Nf3 {[%clk 0:00:06]}  Rxa2 {[%clk 0:00:46]} 41. Nxe5 {[%clk 0:00:06]}  Be3 {[%clk 0:00:38]} 42. Nc4 {[%clk 0:00:06]}  Qa6 {[%clk 0:00:31]} 43. Qf7 {[%clk 0:00:06]}  Rc8 {[%clk 0:00:21]} 44. Nxe3 {[%clk 0:00:05]}  fxe3 {[%clk 0:00:22]} 45. Rfe1 {[%clk 0:00:05]}  e2 {[%clk 0:00:20]} 46. Rb6 {[%clk 0:00:05]}  Qa5 {[%clk 0:00:16]} 47. Qxb7# {[%clk 0:00:05]} 1-0

[Event "January 2 Early 2024"]
[Site "https://www.chess.com"]
[Date "2024.01.02"]
[Round "5"]
[White "Krzyzanowski, Marcin"]
[Black "Carre, Sylvain"]
[Result "1/2-1/2"]
[Board "51"]
[TimeControl "180+1"]
[WhiteFideId "1132199"]
[BlackFideId "642118"]
[WhiteElo "2786"]
[BlackElo "2425"]
[WhiteTeam "POL"]
[BlackTeam "FRA"]
[WhiteClock "0:00:07"]
[BlackClock "0:00:13"]

1. e4 {[%clk 0:03:00]}  e5 {[%clk 0:02:57]} 2. Nf3 {[%clk 0:03:00]}  Nf6 {[%clk 0:02:56]} 3. d4 {[%clk 0:02:59]}  Nxe4 {[%clk 0:02:56]} 4. Bd3 {[%clk 0:02:52]}  d5 {[%clk 0:02:56]} 5. Nxe5 {[%clk 0:02:45]}  Nd7 {[%clk 0:02:56]} 6. O-O {[%clk 0:02:44]}  Bd6 {[%clk 0:02:48]} 7. Nxd7 {[%clk 0:02:41]}  Bxd7 {[%clk 0:02:47]} 8. Nc3 {[%clk 0:02:42]}  Nxc3 {[%clk 0:02:05]} 9. bxc3 {[%clk 0:02:41]}  O-O {[%clk 0:02:06]} 10. Qh5 {[%clk 0:02:39]}  g6 {[%clk 0:02:03]} 11. Qxd5 {[%clk 0:02:35]}  Bc6 {[%clk 0:01:41]} 12. Qg5 {[%clk 0:02:35]}  Qxg5 {[%clk 0:01:35]} 13. Bxg5 {[%clk 0:02:36]}  Rfe8 {[%clk 0:01:35]} 14. c4 {[%clk 0:02:35]}  Be4 {[%clk 0:01:27]} 15. Bxe4 {[%clk 0:02:17]}  Rxe4 {[%clk 0:01:27]} 16. Be3 {[%clk 0:02:07]}  b6 {[%clk 0:01:17]} 17. Rad1 {[%clk 0:01:58]}  Rae8 {[%clk 0:01:16]} 18. Rd3 {[%clk 0:01:58]}  f5 {[%clk 0:01:16]} 19. c5 {[%clk 0:01:47]}  bxc5 {[%clk 0:01:05]} 20. dxc5 {[%clk 0:01:48]}  Bf8 {[%clk 0:01:03]} 21. g3 {[%clk 0:01:47]}  Rc4 {[%clk 0:01:00]} 22. Ra3 {[%clk 0:01:46]}  Bxc5 {[%clk 0:00:54]} 23. Bxc5 {[%clk 0:01:39]}  Rxc5 {[%clk 0:00:54]} 24. Rxa7 {[%clk 0:01:38]}  Rxc2 {[%clk 0:00:53]} 25. a4 {[%clk 0:01:39]}  Ree2 {[%clk 0:00:50]} 26. a5 {[%clk 0:01:39]}  Kg7 {[%clk 0:00:47]} 27. a6 {[%clk 0:01:38]}  Kh6 {[%clk 0:00:46]} 28. Rb7 {[%clk 0:01:34]}  Ra2 {[%clk 0:00:45]} 29. a7 {[%clk 0:01:34]}  c5 {[%clk 0:00:41]} 30. Kg2 {[%clk 0:01:20]}  c4 {[%clk 0:00:40]} 31. Kf3 {[%clk 0:01:16]}  Rec2 {[%clk 0:00:35]} 32. h4 {[%clk 0:01:14]}  Rc3+ {[%clk 0:00:29]} 33. Kg2 {[%clk 0:00:51]}  Rca3 {[%clk 0:00:30]} 34. Rc7 {[%clk 0:00:51]}  Rxa7 {[%clk 0:00:29]} 35. Rxc4 {[%clk 0:00:51]}  R2a4 {[%clk 0:00:29]} 36. Rc6 {[%clk 0:00:49]}  R4a6 {[%clk 0:00:29]} 37. Rcc1 {[%clk 0:00:49]}  Ra2 {[%clk 0:00:27]} 38. Rfe1 {[%clk 0:00:44]}  Rb2 {[%clk 0:00:24]} 39. Re3 {[%clk 0:00:41]}  Rbb7 {[%clk 0:00:21]} 40. Rc6 {[%clk 0:00:39]}  Kg7 {[%clk 0:00:21]} 41. h5 {[%clk 0:00:37]}  Rc7 {[%clk 0:00:18]} 42. Rb6 {[%clk 0:00:28]}  Rab7 {[%clk 0:00:18]} 43. Rbe6 {[%clk 0:00:26]}  Rf7 {[%clk 0:00:17]} 44. Re8 {[%clk 0:00:22]}  gxh5 {[%clk 0:00:16]} 45. f4 {[%clk 0:00:20]}  h4 {[%clk 0:00:15]} 46. Kh3 {[%clk 0:00:16]}  hxg3 {[%clk 0:00:14]} 47. Rxg3+ {[%clk 0:00:17]}  Kf6 {[%clk 0:00:13]} 48. Rg5 {[%clk 0:00:16]}  Rb3+ {[%clk 0:00:09]} 49. Kh4 {[%clk 0:00:16]}  Rb4 {[%clk 0:00:09]} 50. Kg3 {[%clk 0:00:09]}  Rb3+ {[%clk 0:00:09]} 51. Kh4 {[%clk 0:00:06]}  Rb4 {[%clk 0:00:09]} 52. Ra8 {[%clk 0:00:06]}  Rxf4+ {[%clk 0:00:09]} 53. Kh5 {[%clk 0:00:07]}  Re4 {[%clk 0:00:08]} 54. Ra5 {[%clk 0:00:04]}  Re5 {[%clk 0:00:05]} 55. Ra6+ {[%clk 0:00:02]}  Re6 {[%clk 0:00:05]} 56. Ra4 {[%clk 0:00:02]}  Rg7 {[%clk 0:00:05]} 57. Rxg7 {[%clk 0:00:02]}  Kxg7 {[%clk 0:00:06]} 58. Kg5 {[%clk 0:00:02]}  Rg6+ {[%clk 0:00:03]} 59. Kxf5 {[%clk 0:00:02]}  Rf6+ {[%clk 0:00:03]} 60. Kg5 {[%clk 0:00:03]}  Rg6+ {[%clk 0:00:04]} 61. Kh5 {[%clk 0:00:04]}  Rh6+ {[%clk 0:00:04]} 62. Kg4 {[%clk 0:00:04]}  Rg6+ {[%clk 0:00:05]} 63. Kf5 {[%clk 0:00:05]}  Rf6+ {[%clk 0:00:06]} 64. Ke5 {[%clk 0:00:06]}  Rg6 {[%clk 0:00:06]} 65. Rh4 {[%clk 0:00:05]}  h6 {[%clk 0:00:06]} 66. Kf5 {[%clk 0:00:04]}  Rg5+ {[%clk 0:00:06]} 67. Kf4 {[%clk 0:00:05]}  Kg6 {[%clk 0:00:07]} 68. Rh3 {[%clk 0:00:05]}  Rf5+ {[%clk 0:00:07]} 69. Kg4 {[%clk 0:00:05]}  Rg5+ {[%clk 0:00:08]} 70. Kf4 {[%clk 0:00:06]}  Rf5+ {[%clk 0:00:08]} 71. Kg4 {[%clk 0:00:06]}  Rg5+ {[%clk 0:00:08]} 72. Kf3 {[%clk 0:00:06]}  h5 {[%clk 0:00:09]} 73. Rh4 {[%clk 0:00:05]}  Rg4 {[%clk 0:00:08]} 74. Rh1 {[%clk 0:00:02]}  Kg5 {[%clk 0:00:09]} 75. Rh2 {[%clk 0:00:02]}  Rf4+ {[%clk 0:00:09]} 76. Kg3 {[%clk 0:00:02]}  Rg4+ {[%clk 0:00:10]} 77. Kf3 {[%clk 0:00:02]}  Rf4+ {[%clk 0:00:10]} 78. Kg3 {[%clk 0:00:03]}  h4+ {[%clk 0:00:11]} 79. Kh3 {[%clk 0:00:03]}  Rf3+ {[%clk 0:00:10]} 80. Kg2 {[%clk 0:00:03]}  Rg3+ {[%clk 0:00:11]} 81. Kf2 {[%clk 0:00:04]}  Kg4 {[%clk 0:00:11]} 82. Rh1 {[%clk 0:00:03]}  Rf3+ {[%clk 0:00:11]} 83. Kg2 {[%clk 0:00:03]}  Ra3 {[%clk 0:00:11]} 84. Rc1 {[%clk 0:00:02]}  Ra2+ {[%clk 0:00:11]} 85. Kh1 {[%clk 0:00:02]}  Ra4 {[%clk 0:00:12]} 86. Rb1 {[%clk 0:00:02]}  Rd4 {[%clk 0:00:11]} 87. Ra1 {[%clk 0:00:03]}  Rd3 {[%clk 0:00:10]} 88. Kg2 {[%clk 0:00:03]}  Rd2+ {[%clk 0:00:10]} 89. Kh1 {[%clk 0:00:03]}  h3 {[%clk 0:00:10]} 90. Ra4+ {[%clk 0:00:03]}  Kg3 {[%clk 0:00:10]} 91. Ra3+ {[%clk 0:00:04]}  Kg4 {[%clk 0:00:10]} 92. Ra4+ {[%clk 0:00:04]}  Kg3 {[%clk 0:00:11]} 93. Ra3+ {[%clk 0:00:04]}  Kg4 {[%clk 0:00:11]} 94. Rb3 {[%clk 0:00:05]}  Re2 {[%clk 0:00:11]} 95. Rc3 {[%clk 0:00:05]}  Ra2 {[%clk 0:00:12]} 96. Rc4+ {[%clk 0:00:05]}  Kg3 {[%clk 0:00:12]} 97. Rc3+ {[%clk 0:00:06]}  Kg4 {[%clk 0:00:12]} 98. Rc4+ {[%clk 0:00:06]}  Kg3 {[%clk 0:00:12]} 99. Rc3+ {[%clk 0:00:07]}  Kg4 {[%clk 0:00:13]} 1/2-1/2

[Event "January 2 Early 2024"]
[Site "https://www.chess.com"]
[Date "2024.01.02"]
[Round "5"]
[White "Biriukov, Ilja"]
[Black "Bindrich, Falko"]
[Result "0-1"]
[Board "54"]
[TimeControl "180+1"]
[WhiteFideId "4113373"]
[BlackFideId "4676670"]
[WhiteElo "2214"]
[BlackElo "2765"]
[WhiteTeam "RUS"]
[BlackTeam "GER"]
[WhiteClock "0:00:02"]
[BlackClock "0:01:19"]

1. d4 {[%clk 0:03:00]}  d5 {[%clk 0:02:55]} 2. Nc3 {[%clk 0:02:59]}  Nf6 {[%clk 0:02:55]} 3. Bf4 {[%clk 0:02:58]}  a6 {[%clk 0:02:55]} 4. Qd2 {[%clk 0:02:58]}  e6 {[%clk 0:02:54]} 5. f3 {[%clk 0:02:57]}  c5 {[%clk 0:02:53]} 6. e3 {[%clk 0:02:56]}  Nc6 {[%clk 0:02:52]} 7. g4 {[%clk 0:02:55]}  b5 {[%clk 0:02:52]} 8. h4 {[%clk 0:02:45]}  Bb7 {[%clk 0:02:52]} 9. h5 {[%clk 0:02:44]}  h6 {[%clk 0:02:52]} 10. Nh3 {[%clk 0:02:39]}  Nd7 {[%clk 0:02:51]} 11. O-O-O {[%clk 0:02:30]}  Nb6 {[%clk 0:02:51]} 12. g5 {[%clk 0:01:59]}  b4 {[%clk 0:02:49]} 13. Nb1 {[%clk 0:01:57]}  Rc8 {[%clk 0:02:32]} 14. dxc5 {[%clk 0:01:42]}  Bxc5 {[%clk 0:02:30]} 15. e4 {[%clk 0:01:38]}  Nd4 {[%clk 0:01:56]} 16. Bg2 {[%clk 0:01:20]}  Nxc2 {[%clk 0:01:44]} 17. Qxc2 {[%clk 0:00:42]}  Bd6 {[%clk 0:01:38]} 18. Bxd6 {[%clk 0:00:35]}  Rxc2+ {[%clk 0:01:38]} 19. Kxc2 {[%clk 0:00:35]}  Qxd6 {[%clk 0:01:39]} 20. Nd2 {[%clk 0:00:26]}  O-O {[%clk 0:01:31]} 21. gxh6 {[%clk 0:00:23]}  gxh6 {[%clk 0:01:32]} 22. Rhg1 {[%clk 0:00:19]}  Kh7 {[%clk 0:01:33]} 23. f4 {[%clk 0:00:17]}  Rc8+ {[%clk 0:01:29]} 24. Kb1 {[%clk 0:00:16]}  Qc5 {[%clk 0:01:29]} 25. Rc1 {[%clk 0:00:12]}  Qe3 {[%clk 0:01:29]} 26. Nb3 {[%clk 0:00:10]}  Rxc1+ {[%clk 0:01:27]} 27. Rxc1 {[%clk 0:00:08]}  Nc4 {[%clk 0:01:23]} 28. f5 {[%clk 0:00:05]}  Qd3+ {[%clk 0:01:19]} 29. Ka1 {[%clk 0:00:04]}  Qe2 {[%clk 0:01:20]} 30. fxe6 {[%clk 0:00:02]}  Qxb2# {[%clk 0:01:19]} 0-1